fUST/lending_fUST_20240828
["ID","MTS","AMOUNT","RATE_DAILY","PERIOD"]
[336407059,1724813322012,-505.91927414,0.00010958,2]
[336407060,1724813322037,-500.0,0.00010958,2]
[336407061,1724813322060,-500.0,0.00010958,2]
[336407062,1724813322083,-502.81920487,0.00010958,2]
[336407063,1724813322108,-500.0,0.00010958,2]
[336407064,1724813322131,-502.98120299,0.00010958,2]
[336407065,1724813322159,-500.0,0.00010958,2]
[336407066,1724813322183,-500.0,0.00010958,2]
[336407067,1724813322207,-500.0,0.00010958,2]
[336407068,1724813322239,-404.76419879,0.00010958,2]
[336407069,1724813322264,-500.0,0.00010958,2]
[336407070,1724813322289,-197.43955593,0.00010958,2]
[336407074,1724813407212,500.0,0.00025,120]
[336407102,1724813432189,-335.27069433,0.00010858,2]
[336407104,1724813432204,-169.54843373,0.00010858,2]
[336407106,1724813432216,-129.95162351,0.00010958,2]
[336407147,1724813438531,-24.6078819,0.00010958,2]
[336407148,1724813438551,-302.56044407,0.00010958,2]
[336407149,1724813438561,-500.0,0.00010958,2]
[336407150,1724813438571,-500.0,0.00010958,2]
[336407151,1724813438581,-645.40957348,0.00010958,2]
[336407152,1724813438592,-500.0,0.00010958,2]
[336407153,1724813438604,-500.0,0.00010958,2]
[336407154,1724813438613,-500.0,0.00010958,2]
[336407155,1724813438623,-159.02,0.00010958,2]
[336407156,1724813438635,-353.77,0.00010958,2]
[336407157,1724813438646,-500.0,0.00010958,2]
[336407158,1724813438656,-500.0,0.00010958,2]
[336407159,1724813438665,-500.0,0.00010958,2]
[336407160,1724813438676,-500.0,0.00010958,2]
[336407161,1724813438688,-500.0,0.00010958,2]
[336407162,1724813438699,-667.26,0.00010958,2]
[336407163,1724813438708,-501.27390664,0.00010958,2]
[336407164,1724813438719,-500.0,0.00010958,2]
[336407165,1724813438729,-500.0,0.00010958,2]
[336407166,1724813438738,-500.0,0.00010958,2]
[336407167,1724813438748,-500.0,0.00010958,2]
[336407168,1724813438759,-500.0,0.00010958,2]
[336407169,1724813438770,-503.15118585,0.00010958,2]
[336407170,1724813438781,-500.0,0.00010958,2]
[336407171,1724813438793,-500.0,0.00010958,2]
[336407172,1724813438802,-500.0,0.00010958,2]
[336407173,1724813438812,-500.0,0.00010958,2]
[336407174,1724813438821,-500.0,0.00010958,2]
[336407175,1724813438831,-500.0,0.00010958,2]
[336407176,1724813438841,-500.0,0.00010958,2]
[336407177,1724813438850,-500.0,0.00010958,2]
[336407178,1724813438860,-505.47283577,0.00010958,2]
[336407179,1724813438870,-501.39464723,0.00010958,2]
[336407180,1724813438880,-500.0,0.00010958,2]
[336407181,1724813438890,-504.21772898,0.00010958,2]
[336407182,1724813438900,-576.44003261,0.00010958,2]
[336407183,1724813438911,-503.92779898,0.00010958,2]
[336407184,1724813438921,-513.6,0.00010958,2]
[336407185,1724813438931,-500.0,0.00010958,2]
[336407186,1724813438941,-500.0,0.00010958,2]
[336407187,1724813438951,-501.59538685,0.00010958,2]
[336407188,1724813438962,-2016.72,0.00010958,2]
[336407189,1724813438973,-508.84,0.00010958,2]
[336407190,1724813438983,-3536.98,0.00010958,2]
[336407191,1724813438993,-500.0,0.00010958,2]
[336407192,1724813439003,-500.0,0.00010958,2]
[336407193,1724813439013,-500.0,0.00010958,2]
[336407194,1724813439024,-500.81343307,0.00010958,2]
[336407195,1724813439035,-507.49196573,0.00010958,2]
[336407196,1724813439047,-501.16804035,0.00010958,2]
[336407197,1724813439058,-506.34058215,0.00010958,2]
[336407198,1724813439069,-2014.22,0.00010958,2]
[336407199,1724813439079,-500.0,0.00010958,2]
[336407200,1724813439088,-500.0,0.00010958,2]
[336407201,1724813439098,-543.94,0.00010958,2]
[336407202,1724813439108,-500.0,0.00010958,2]
[336407203,1724813439118,-500.0,0.00010958,2]
[336407204,1724813439128,-507.06039095,0.00010958,2]
[336407205,1724813439138,-500.0,0.00010958,2]
[336407206,1724813439147,-500.0,0.00010958,2]
[336407207,1724813439156,-500.0,0.00010958,2]
[336407208,1724813439166,-500.0,0.00010958,2]
[336407209,1724813439175,-500.0,0.00010958,2]
[336407210,1724813439184,-500.0,0.00010958,2]
[336407211,1724813439193,-500.0,0.00010958,2]
[336407212,1724813439202,-500.0,0.00010958,2]
[336407213,1724813439212,-501.50539514,0.00010958,2]
[336407214,1724813439221,-500.0,0.00010958,2]
[336407215,1724813439231,-500.0,0.00010958,2]
[336407216,1724813439240,-500.0,0.00010958,2]
[336407217,1724813439251,-891.47,0.00010958,2]
[336407218,1724813439262,-500.0,0.00010958,2]
[336407219,1724813439271,-502.96163878,0.00010958,2]
[336407220,1724813439281,-500.0,0.00010958,2]
[336407221,1724813439293,-500.0,0.00010958,2]
[336407222,1724813439303,-500.0,0.00010958,2]
[336407223,1724813439312,-500.0,0.00010958,2]
[336407224,1724813439322,-3401.6,0.00010958,2]
[336407225,1724813439331,-500.0,0.00010958,2]
[336407226,1724813439341,-501.64300067,0.00010958,2]
[336407227,1724813439350,-500.0,0.00010958,2]
[336407228,1724813439359,-500.0,0.00010958,2]
[336407229,1724813439369,-500.0,0.00010958,2]
[336407230,1724813439378,-500.0,0.00010958,2]
[336407231,1724813439388,-502.46231935,0.00010958,2]
[336407232,1724813439397,-2175.2,0.00010958,2]
[336407233,1724813439407,-500.0,0.00010958,2]
[336407234,1724813439416,-1219.75,0.00010958,2]
[336407235,1724813439425,-501.65525648,0.00010958,2]
[336407236,1724813439435,-500.0,0.00010958,2]
[336407237,1724813439623,-500.0,0.00010958,2]
[336407238,1724813439634,-505.69797483,0.00010958,2]
[336407239,1724813439645,-524.89587968,0.00010958,2]
[336407240,1724813439656,-500.0,0.00010958,2]
[336407241,1724813439668,-500.0,0.00010958,2]
[336407242,1724813439678,-503.35024385,0.00010958,2]
[336407243,1724813439690,-500.0,0.00010958,2]
[336407244,1724813439701,-504.69088632,0.00010958,2]
[336407245,1724813439712,-502.92256548,0.00010958,2]
[336407246,1724813439724,-500.0,0.00010958,2]
[336407247,1724813439734,-216.01,0.00010958,2]
[336407248,1724813439744,-502.21806585,0.00010958,2]
[336407249,1724813439757,-500.0,0.00010958,2]
[336407250,1724813439768,-500.0,0.00010958,2]
[336407251,1724813439779,-505.29023737,0.00010958,2]
[336407252,1724813439790,-500.0,0.00010958,2]
[336407253,1724813439801,-500.0,0.00010958,2]
[336407254,1724813439810,-578.4,0.00010958,2]
[336407255,1724813439820,-2820.29,0.00010958,2]
[336407256,1724813439829,-500.0,0.00010958,2]
[336407257,1724813439839,-530.4,0.00010958,2]
[336407258,1724813439849,-11519.81,0.00010958,2]
[336407259,1724813439858,-2923.17,0.00010958,2]
[336407260,1724813439867,-500.0,0.00010958,2]
[336407261,1724813439876,-1117.49,0.00010958,2]
[336407262,1724813439885,-500.0,0.00010958,2]
[336407263,1724813439894,-500.0,0.00010958,2]
[336407264,1724813439904,-504.064961,0.00010958,2]
[336407265,1724813439913,-2110.13,0.00010958,2]
[336407266,1724813439923,-500.0,0.00010958,2]
[336407267,1724813439933,-500.0,0.00010958,2]
[336407268,1724813439942,-500.0,0.00010958,2]
[336407269,1724813439951,-500.0,0.00010958,2]
[336407270,1724813439961,-573.0,0.00010958,2]
[336407271,1724813439970,-500.0,0.00010958,2]
[336407272,1724813439980,-505.52,0.00010958,2]
[336407273,1724813439989,-2382.09,0.00010958,2]
[336407274,1724813439999,-500.0,0.00010958,2]
[336407275,1724813440008,-632.00744761,0.00010958,2]
[336407276,1724813440017,-2293.23,0.00010958,2]
[336407277,1724813440027,-500.0,0.00010958,2]
[336407278,1724813440037,-500.0,0.00010958,2]
[336407279,1724813440046,-500.0,0.00010958,2]
[336407280,1724813440056,-500.0,0.00010958,2]
[336407281,1724813440065,-500.0,0.00010958,2]
[336407282,1724813440075,-500.0,0.00010958,2]
[336407283,1724813440084,-500.0,0.00010958,2]
[336407284,1724813440093,-500.0,0.00010958,2]
[336407285,1724813440104,-500.0,0.00010958,2]
[336407286,1724813440115,-19579.5974261,0.00010958,2]
[336407287,1724813440126,-804.1,0.00010958,2]
[336407288,1724813440137,-500.0,0.00010958,2]
[336407289,1724813440147,-155.73483859,0.00010958,2]
[336407290,1724813440156,-502.81174126,0.00010958,2]
[336407291,1724813440168,-500.0,0.00010958,2]
[336407293,1724813440177,-500.0,0.00010958,2]
[336407295,1724813440188,-500.0,0.00010958,2]
[336407297,1724813440199,-500.77997714,0.00010958,2]
[336407298,1724813440210,-500.0,0.00010958,2]
[336407300,1724813440220,-500.0,0.00010958,2]
[336407302,1724813440229,-500.0,0.00010958,2]
[336407304,1724813440241,-500.0,0.00010958,2]
[336407306,1724813440250,-500.0,0.00010958,2]
[336407308,1724813440261,-792.46,0.00010958,2]
[336407310,1724813440271,-5952.91,0.00010958,2]
[336407312,1724813440280,-848.19,0.00010959,2]
[336407314,1724813440290,-504.81912805,0.00011132,2]
[336407316,1724813440300,-500.0,0.00011231,2]
[336407318,1724813440309,-500.0,0.00011231,2]
[336407320,1724813440320,-500.0,0.00011231,2]
[336407322,1724813440330,-500.0,0.00011231,2]
[336407324,1724813440339,-500.0,0.00011231,2]
[336407326,1724813440348,-500.0,0.00011231,2]
[336407328,1724813440358,-542.38439274,0.00011232,2]
[336407330,1724813440369,-500.0,0.00011232,2]
[336407332,1724813440379,-500.0,0.00011232,2]
[336407335,1724813440390,-500.0,0.00011232,2]
[336407337,1724813440400,-186.29277964,0.00011232,2]
[336407339,1724813440409,-510.78017722,0.00011232,2]
[336407341,1724813440419,-605.15786934,0.00011232,2]
[336407343,1724813440429,-500.0,0.00011232,2]
[336407345,1724813440439,-500.0,0.00011232,2]
[336407347,1724813440449,-500.0,0.00011232,2]
[336407349,1724813440462,-629.88036882,0.00011232,2]
[336407351,1724813440474,-500.0,0.00011232,2]
[336407354,1724813440485,-500.0,0.00011232,2]
[336407356,1724813440496,-500.0,0.00011232,2]
[336407358,1724813440507,-500.0,0.00011232,2]
[336407360,1724813440516,-500.0,0.00011232,2]
[336407361,1724813440526,-504.98777393,0.00011232,2]
[336407363,1724813440536,-500.0,0.00011232,2]
[336407364,1724813440547,-513.62579405,0.00011232,2]
[336407366,1724813440558,-500.0,0.00011232,2]
[336407368,1724813440567,-500.0,0.00011232,2]
[336407370,1724813440580,-500.0,0.00011232,2]
[336407371,1724813440591,-500.0,0.00011232,2]
[336407372,1724813440603,-161.57346621,0.00011232,2]
[336407373,1724813440614,-500.0,0.00011232,2]
[336407374,1724813440624,-500.0,0.00011232,2]
[336407375,1724813440633,-769.1,0.00011232,2]
[336407376,1724813440644,-500.0,0.00011232,2]
[336407377,1724813440656,-501.70695037,0.00011232,2]
[336407378,1724813440666,-503.97942478,0.00011232,2]
[336407379,1724813440680,-502.21915351,0.00011232,2]
[336407380,1724813440692,-500.0,0.00011232,2]
[336407381,1724813440701,-334.72,0.00011232,2]
[336407382,1724813440711,-500.0,0.00011232,2]
[336407383,1724813440720,-500.49295349,0.00011232,2]
[336407384,1724813440731,-572.68,0.00011232,2]
[336407385,1724813440740,-500.0,0.00011232,2]
[336407386,1724813440749,-500.0,0.00011232,2]
[336407387,1724813440759,-500.0,0.00011232,2]
[336407388,1724813440771,-500.0,0.00011232,2]
[336407389,1724813440780,-667.26,0.00011232,2]
[336407390,1724813440791,-309.98,0.00011232,2]
[336407391,1724813440800,-500.0,0.00011232,2]
[336407392,1724813440810,-500.0,0.00011232,2]
[336407393,1724813440822,-500.0,0.00011232,2]
[336407394,1724813440832,-500.0,0.00011232,2]
[336407395,1724813440843,-579.12,0.00011232,2]
[336407396,1724813440852,-500.53941819,0.00011232,2]
[336407397,1724813440862,-2016.72,0.00011232,2]
[336407398,1724813440872,-508.84,0.00011232,2]
[336407399,1724813440881,-3536.98,0.00011232,2]
[336407400,1724813440891,-2014.22,0.00011232,2]
[336407401,1724813440901,-500.0,0.00011232,2]
[336407402,1724813440909,-500.0,0.00011232,2]
[336407403,1724813440919,-543.94,0.00011232,2]
[336407404,1724813440931,-500.0,0.00011232,2]
[336407405,1724813440941,-500.0,0.00011232,2]
[336407406,1724813440951,-500.0,0.00011232,2]
[336407407,1724813440960,-500.0,0.00011232,2]
[336407408,1724813440969,-500.0,0.00011232,2]
[336407409,1724813440979,-891.47,0.00011232,2]
[336407410,1724813440989,-500.0,0.00011232,2]
[336407411,1724813440999,-500.0,0.00011232,2]
[336407412,1724813441008,-3401.6,0.00011232,2]
[336407413,1724813441018,-500.0,0.00011232,2]
[336407414,1724813441028,-500.0,0.00011232,2]
[336407415,1724813441038,-500.0,0.00011232,2]
[336407416,1724813441048,-2175.2,0.00011232,2]
[336407417,1724813441058,-1219.75,0.00011232,2]
[336407418,1724813441067,-503.55749981,0.00011232,2]
[336407419,1724813441077,-500.0,0.00011232,2]
[336407420,1724813441087,-500.0,0.00011232,2]
[336407421,1724813441097,-2820.29,0.00011232,2]
[336407422,1724813441107,-500.0,0.00011232,2]
[336407423,1724813441116,-530.4,0.00011232,2]
[336407424,1724813441126,-11519.81,0.00011232,2]
[336407425,1724813441136,-2923.17,0.00011232,2]
[336407426,1724813441146,-1117.49,0.00011232,2]
[336407427,1724813441156,-500.0,0.00011232,2]
[336407428,1724813441166,-2110.13,0.00011232,2]
[336407429,1724813441176,-500.0,0.00011232,2]
[336407430,1724813441186,-380.54777595,0.00011232,2]
[336407431,1724813441196,-500.0,0.00011232,2]
[336407432,1724813441206,-2382.09,0.00011232,2]
[336407433,1724813441215,-2293.23,0.00011232,2]
[336407434,1724813441225,-500.0,0.00011232,2]
[336407435,1724813441235,-500.0,0.00011232,2]
[336407436,1724813441245,-500.0,0.00011232,2]
[336407437,1724813441254,-500.0,0.00011232,2]
[336407438,1724813441267,-500.0,0.00011232,2]
[336407439,1724813441276,-804.1,0.00011232,2]
[336407440,1724813441287,-500.0,0.00011232,2]
[336407441,1724813441297,-500.0,0.00011232,2]
[336407442,1724813441307,-500.0,0.00011232,2]
[336407443,1724813441317,-500.0,0.00011232,2]
[336407444,1724813441328,-500.0,0.00011232,2]
[336407445,1724813441338,-792.46,0.00011232,2]
[336407446,1724813441347,-5952.91,0.00011232,2]
[336407447,1724813441357,-504.81912805,0.00011406,2]
[336407448,1724813441367,-210.43217369,0.00011409,2]
[336407449,1724813441377,-404.8069796,0.00011409,2]
[336407450,1724813441388,-500.0,0.00011505,2]
[336407451,1724813441398,-500.0,0.00011505,2]
[336407452,1724813441409,-500.0,0.00011506,2]
[336407453,1724813441420,-500.0,0.00011506,2]
[336407454,1724813441430,-321.68037138,0.00011506,2]
[336407455,1724813441440,-500.0,0.00011506,2]
[336407456,1724813441450,-527.36953665,0.00011506,2]
[336407457,1724813441461,-295.62634926,0.00011506,2]
[336407458,1724813441471,-500.0,0.00011506,2]
[336407459,1724813441484,-500.0,0.00011506,2]
[336407460,1724813441495,-500.0,0.00011506,2]
[336407461,1724813441505,-159.71924606,0.00011506,2]
[336407462,1724813441516,-500.0,0.00011506,2]
[336407463,1724813441528,-500.0,0.00011506,2]
[336407464,1724813441540,-500.0,0.00011506,2]
[336407465,1724813441561,-500.0,0.00011506,2]
[336407466,1724813441571,-769.1,0.00011506,2]
[336407467,1724813441581,-500.0,0.00011506,2]
[336407468,1724813441590,-588.29,0.00011506,2]
[336407469,1724813441599,-500.0,0.00011506,2]
[336407470,1724813441609,-176.13963486,0.00011506,2]
[336407471,1724813441619,-350.88,0.00011506,2]
[336407472,1724813441631,-667.26,0.00011506,2]
[336407473,1724813441642,-500.0,0.00011506,2]
[336407474,1724813441653,-500.0,0.00011506,2]
[336407475,1724813441663,-500.0,0.00011506,2]
[336407476,1724813441672,-500.0,0.00011506,2]
[336407477,1724813441685,-2016.72,0.00011506,2]
[336407478,1724813441695,-508.84,0.00011506,2]
[336407479,1724813441704,-3536.98,0.00011506,2]
[336407480,1724813441713,-2014.22,0.00011506,2]
[336407481,1724813441725,-500.0,0.00011506,2]
[336407482,1724813441735,-543.94,0.00011506,2]
[336407483,1724813441744,-500.0,0.00011506,2]
[336407484,1724813441759,-500.0,0.00011506,2]
[336407485,1724813441770,-500.0,0.00011506,2]
[336407486,1724813441780,-500.0,0.00011506,2]
[336407487,1724813441797,-891.47,0.00011506,2]
[336407488,1724813441808,-3401.6,0.00011506,2]
[336407489,1724813441819,-500.0,0.00011506,2]
[336407490,1724813441830,-500.0,0.00011506,2]
[336407491,1724813441841,-500.0,0.00011506,2]
[336407492,1724813441851,-2175.2,0.00011506,2]
[336407493,1724813441862,-1219.75,0.00011506,2]
[336407494,1724813441871,-500.0,0.00011506,2]
[336407495,1724813441880,-2820.29,0.00011506,2]
[336407496,1724813441891,-530.4,0.00011506,2]
[336407497,1724813441900,-11519.81,0.00011506,2]
[336407498,1724813441909,-2923.17,0.00011506,2]
[336407499,1724813441918,-1117.49,0.00011506,2]
[336407500,1724813441928,-500.0,0.00011506,2]
[336407501,1724813441937,-2110.13,0.00011506,2]
[336407502,1724813441947,-500.0,0.00011506,2]
[336407503,1724813441958,-437.30527446,0.00011506,2]
[336407504,1724813441969,-2382.09,0.00011506,2]
[336407505,1724813441979,-2293.23,0.00011506,2]
[336407506,1724813441990,-500.0,0.00011506,2]
[336407507,1724813442001,-500.0,0.00011506,2]
[336407508,1724813442011,-500.0,0.00011506,2]
[336407509,1724813442020,-335.83928284,0.00011506,2]
[336407510,1724813442030,-804.1,0.00011506,2]
[336407511,1724813442039,-500.0,0.00011506,2]
[336407512,1724813442049,-276.23,0.00011506,2]
[336407513,1724813442060,-500.0,0.00011506,2]
[336407514,1724813442069,-792.46,0.00011506,2]
[336407515,1724813442080,-5952.91,0.00011506,2]
[336407516,1724813442091,-155.087297,0.00011621,2]
[336407517,1724813442101,-8872.54302667,0.0001168,2]
[336407518,1724813442111,-301.82720385,0.00011712,2]
[336407519,1724813442120,-3095.48272537,0.00011731,2]
[336407520,1724813442131,-1173.96569734,0.00011731,2]
[336407521,1724813442142,-381.02149673,0.00011779,2]
[336407522,1724813442152,-500.0,0.0001178,2]
[336407523,1724813442163,-503.03297034,0.0001178,2]
[336407524,1724813442173,-500.0,0.0001178,2]
[336407525,1724813442182,-258.21102857,0.0001178,2]
[336407526,1724813442192,-500.0,0.0001178,2]
[336407527,1724813442201,-500.0,0.0001178,2]
[336407528,1724813442211,-500.0,0.0001178,2]
[336407529,1724813442220,-769.1,0.0001178,2]
[336407530,1724813442231,-500.0,0.0001178,2]
[336407531,1724813442241,-667.26,0.0001178,2]
[336407532,1724813442251,-500.0,0.0001178,2]
[336407533,1724813442260,-500.0,0.0001178,2]
[336407534,1724813442274,-553.00908534,0.0001178,2]
[336407535,1724813442285,-500.0,0.0001178,2]
[336407536,1724813442295,-508.84,0.0001178,2]
[336407537,1724813442305,-2016.72,0.0001178,2]
[336407538,1724813442315,-3536.98,0.0001178,2]
[336407539,1724813442325,-2014.22,0.0001178,2]
[336407540,1724813442335,-485.05135613,0.0001178,2]
[336407541,1724813442347,-543.94,0.0001178,2]
[336407542,1724813442357,-500.0,0.0001178,2]
[336407543,1724813442367,-202.68,0.0001178,2]
[336407544,1724813442379,-500.0,0.0001178,2]
[336407545,1724813442390,-891.47,0.0001178,2]
[336407546,1724813442402,-3401.6,0.0001178,2]
[336407547,1724813442411,-500.0,0.0001178,2]
[336407548,1724813442423,-2175.2,0.0001178,2]
[336407549,1724813442433,-1219.75,0.0001178,2]
[336407550,1724813442446,-500.0,0.0001178,2]
[336407551,1724813442458,-2820.29,0.0001178,2]
[336407552,1724813442469,-530.4,0.0001178,2]
[336407553,1724813442478,-11519.81,0.0001178,2]
[336407554,1724813442487,-2923.17,0.0001178,2]
[336407555,1724813442497,-1117.49,0.0001178,2]
[336407556,1724813442509,-500.0,0.0001178,2]
[336407557,1724813442519,-2110.13,0.0001178,2]
[336407558,1724813442530,-500.0,0.0001178,2]
[336407559,1724813442542,-2382.09,0.0001178,2]
[336407560,1724813442551,-2293.23,0.0001178,2]
[336407561,1724813442561,-500.0,0.0001178,2]
[336407562,1724813442572,-500.0,0.0001178,2]
[336407563,1724813442583,-500.0,0.0001178,2]
[336407564,1724813442595,-804.1,0.0001178,2]
[336407565,1724813442604,-500.0,0.0001178,2]
[336407566,1724813442614,-500.0,0.0001178,2]
[336407567,1724813442624,-792.46,0.0001178,2]
[336407568,1724813442633,-5952.91,0.0001178,2]
[336407569,1724813442645,-647.91993429,0.00011817,2]
[336407570,1724813442656,-42449.47322548,0.00011842,2]
[336407571,1724813442667,-1457.38992944,0.00011853,2]
[336407572,1724813442682,-500.0,0.00011873,2]
[336407573,1724813442693,-500.0,0.00011873,2]
[336407574,1724813442704,-199.50459183,0.00011873,2]
[336407575,1724813442715,-500.0,0.00011873,2]
[336407576,1724813442725,-12976.35681957,0.000119,5]
[336407577,1724813442735,-622362.367393,0.000119,2]
[336407578,1724813442745,-261.98138611,0.00012054,2]
[336407579,1724813442754,-500.0,0.00012054,2]
[336407580,1724813442766,-500.0,0.00012054,2]
[336407583,1724813442776,-500.0,0.00012054,2]
[336407585,1724813442785,-560.65,0.00012054,2]
[336407587,1724813442795,-769.1,0.00012054,2]
[336407589,1724813442804,-500.0,0.00012054,2]
[336407592,1724813442813,-667.26,0.00012054,2]
[336407594,1724813442823,-500.0,0.00012054,2]
[336407597,1724813442832,-500.0,0.00012054,2]
[336407600,1724813442842,-2016.72,0.00012054,2]
[336407603,1724813442851,-508.84,0.00012054,2]
[336407606,1724813442861,-3536.98,0.00012054,2]
[336407608,1724813442872,-2014.22,0.00012054,2]
[336407609,1724813442881,-543.94,0.00012054,2]
[336407610,1724813442891,-500.0,0.00012054,2]
[336407611,1724813442900,-500.0,0.00012054,2]
[336407612,1724813442909,-891.47,0.00012054,2]
[336407613,1724813442920,-3401.6,0.00012054,2]
[336407614,1724813442930,-500.0,0.00012054,2]
[336407615,1724813442939,-2175.2,0.00012054,2]
[336407619,1724813442949,-1219.75,0.00012054,2]
[336407623,1724813442959,-500.0,0.00012054,2]
[336407627,1724813442968,-2820.29,0.00012054,2]
[336407631,1724813442978,-530.4,0.00012054,2]
[336407635,1724813442988,-11519.81,0.00012054,2]
[336407638,1724813442997,-2923.17,0.00012054,2]
[336407640,1724813443007,-1117.49,0.00012054,2]
[336407642,1724813443018,-380.1924918,0.00012054,2]
[336407644,1724813443029,-2110.13,0.00012054,2]
[336407646,1724813443040,-500.0,0.00012054,2]
[336407648,1724813443050,-2382.09,0.00012054,2]
[336407650,1724813443060,-2293.23,0.00012054,2]
[336407652,1724813443069,-500.0,0.00012054,2]
[336407654,1724813443079,-175.06826955,0.00012054,2]
[336407656,1724813443088,-500.0,0.00012054,2]
[336407658,1724813443098,-804.1,0.00012054,2]
[336407660,1724813443108,-310.3782227,0.00012054,2]
[336407662,1724813443117,-500.0,0.00012054,2]
[336407663,1724813443127,-792.46,0.00012054,2]
[336407664,1724813443136,-5952.91,0.00012054,2]
[336407667,1724813443146,-7985.02986348,0.0001212,2]
[336407670,1724813443157,-8872.54302667,0.0001216,2]
[336407673,1724813443166,-8852.09163784,0.00012163,2]
[336407675,1724813443176,-8852.09163784,0.00012163,2]
[336407677,1724813443186,-500.0,0.00012328,2]
[336407679,1724813443196,-500.0,0.00012328,2]
[336407681,1724813443206,-500.0,0.00012328,2]
[336407683,1724813443215,-769.1,0.00012328,2]
[336407685,1724813443225,-500.0,0.00012328,2]
[336407687,1724813443235,-667.26,0.00012328,2]
[336407689,1724813443244,-500.0,0.00012328,2]
[336407691,1724813443253,-500.0,0.00012328,2]
[336407693,1724813443264,-2016.72,0.00012328,2]
[336407695,1724813443274,-508.84,0.00012328,2]
[336407697,1724813443283,-3536.98,0.00012328,2]
[336407699,1724813443293,-2014.22,0.00012328,2]
[336407701,1724813443302,-543.94,0.00012328,2]
[336407703,1724813443311,-500.0,0.00012328,2]
[336407705,1724813443321,-500.0,0.00012328,2]
[336407707,1724813443330,-891.47,0.00012328,2]
[336407709,1724813443340,-3401.6,0.00012328,2]
[336407711,1724813443349,-500.0,0.00012328,2]
[336407713,1724813443359,-620.52181037,0.00012328,2]
[336407716,1724813443377,-1554.67818963,0.00012328,2]
[336407718,1724813443387,-1219.75,0.00012328,2]
[336407720,1724813443396,-509.65154983,0.00012328,2]
[336407722,1724813443407,-2820.29,0.00012328,2]
[336407724,1724813443416,-530.4,0.00012328,2]
[336407725,1724813443425,-522.43341683,0.00012328,2]
[336407727,1724813443438,-303.21662069,0.00012328,2]
[336407768,1724813443859,-10694.15996248,0.00012328,2]
[336407770,1724813443869,-2923.17,0.00012328,2]
[336407772,1724813443880,-1117.49,0.00012328,2]
[336407774,1724813443890,-2110.13,0.00012328,2]
[336407776,1724813443899,-500.0,0.00012328,2]
[336407778,1724813443908,-2382.09,0.00012328,2]
[336407780,1724813443917,-2293.23,0.00012328,2]
[336407782,1724813443927,-500.0,0.00012328,2]
[336407784,1724813443937,-500.0,0.00012328,2]
[336407786,1724813443947,-804.1,0.00012328,2]
[336407788,1724813443956,-500.0,0.00012328,2]
[336407790,1724813443966,-792.46,0.00012328,2]
[336407792,1724813443976,-5952.91,0.00012328,2]
[336407794,1724813443986,-2999.17623735,0.00012356,2]
[336407796,1724813443995,-1001.20827901,0.00012421,2]
[336407798,1724813444005,-1000.0,0.00012421,2]
[336407800,1724813444014,-184.75069855,0.00012421,2]
[336407802,1724813444024,-2715.06569498,0.00012516,2]
[336407804,1724813444034,-2611.26711056,0.00012551,2]
[336407806,1724813444044,-500.0,0.00012602,2]
[336407808,1724813444054,-500.0,0.00012602,2]